{"text_format":"1","workbook":"xlsx","n_sheets":10,"sheets":["PAGE 1","PAGE 2","PAGE 3","PAGE 4","PAGE 5","PAGE 6","PAGE 7","PAGE 8","PAGE 9","PAGE 10"],"not_rendered":{"charts":0,"images":0,"macros":1,"external_links":1,"defined_names":12,"comments":0,"pivot_tables":0},"unopened":[],"bounds":{"document_bytes":16777216,"sheet_cells":100000,"rows_first":2000,"rows_last":500,"rows_between":2000,"halvings":0,"cell_chars":16384,"cell_head_chars":4096},"cells_cut":0,"cells_raw":0,"read":"whole","date_system":"1900"}

{"sheet":"PAGE 1","index":0,"n_rows":38,"n_cols":38,"rows_kept":38,"cut":false,"hidden":false,"merged":[[7,7,7,13],[7,14,7,19],[7,20,7,25],[7,26,7,30],[8,7,8,13],[8,14,8,19],[37,18,37,21],[33,18,33,21],[34,18,35,21],[36,18,36,21],[28,24,28,29],[29,24,29,29],[31,26,32,28],[32,23,32,25],[10,7,10,13],[10,14,10,19],[11,7,11,13],[9,7,9,13],[9,14,9,19],[2,4,3,6],[3,7,3,9],[8,20,8,25],[8,26,8,30],[14,23,16,23],[14,24,16,30],[26,0,26,2],[29,0,29,2],[28,0,28,2],[27,0,27,2],[29,5,29,6],[28,5,28,6],[27,5,27,6],[26,5,26,6],[25,5,25,6],[3,1,3,3],[6,1,6,6],[5,1,5,6],[12,1,12,6],[13,1,13,6],[14,5,14,6],[10,1,10,6],[8,1,8,6],[14,15,14,22],[14,0,16,2],[9,1,9,6],[14,3,15,3],[15,5,15,6],[16,5,16,6],[14,4,16,4],[11,1,11,6],[23,0,23,2],[25,0,25,2],[22,0,22,2],[21,0,21,2],[20,0,20,2],[19,0,19,2],[18,0,18,2],[23,5,23,6],[19,5,19,6],[24,0,24,2],[24,5,24,6],[17,0,17,2],[18,5,18,6],[17,5,17,6],[1,2,1,3],[17,35,17,36],[18,35,18,36],[19,35,19,36],[20,35,20,36],[21,35,21,36],[22,35,22,36],[4,32,5,35],[17,32,17,33],[18,32,18,33],[19,32,19,33],[20,32,20,33],[21,32,21,33],[22,32,22,33],[2,1,2,3],[7,1,7,6],[21,5,21,6],[20,5,20,6],[22,5,22,6],[13,34,16,34],[16,32,16,33],[14,7,14,14],[11,14,11,19],[11,20,11,25],[23,35,23,36],[24,35,24,36],[25,35,25,36],[16,35,16,36],[10,20,10,25],[11,33,11,35],[6,32,9,36],[12,31,12,36],[10,26,10,30],[15,32,15,33],[11,26,11,30],[9,20,9,25],[9,26,9,30],[24,32,24,33],[25,32,25,33],[13,31,16,31],[26,32,26,33],[27,32,27,33],[28,32,28,33],[29,32,29,33],[30,34,31,34],[26,35,26,36],[27,35,27,36],[28,35,28,36],[29,35,29,36],[30,32,31,33],[30,35,31,36],[0,31,0,32],[1,33,1,37],[0,33,0,37],[0,26,0,28],[2,14,3,15],[3,21,3,23],[2,20,2,23],[2,16,3,19],[6,7,6,13],[6,14,6,19],[6,20,6,25],[6,26,6,30],[1,9,1,25],[1,26,1,29],[5,7,5,13],[5,26,5,30],[5,20,5,25],[5,14,5,19],[3,24,3,25],[2,24,2,25],[3,26,3,30],[33,37,35,37],[30,37,32,37],[34,23,35,29],[12,7,12,13],[12,14,12,19],[12,20,12,25],[12,26,12,30],[13,7,13,13],[13,14,13,19],[13,20,13,25],[13,26,13,30],[17,24,17,29],[18,24,18,29],[19,24,19,29],[20,24,20,29],[21,24,21,29],[22,24,22,29],[23,24,23,29],[24,24,24,29],[25,24,25,29],[26,24,26,29],[27,24,27,29],[15,35,15,36],[23,32,23,33]]}
["J.P. FORM 2-1  Rev 07/20",null,null,null,null,null,null,null,null,"Preliminary",null,null,null,null,"AUTHORIZATION FOR JOINT POLE TRANSACTION",null,null,null,null,null,null,null,null,null,null,null,null,null,null,"SCJPC USE ONLY",null,"BILL NO. "]
["PAGE NO.",null,"1 OF",null,null,null,null,null,null,"This authorization is in accordance with Joint Pole Agreement and Routine. The undersigned have agreed on joint work as specified heron."]
["Date Prepared",null,null,null,"Confirming Agreement",null,null,null,null,null,null,"In Field","By\nPhone","By\nEmail","Date \nCompleted",null,null,null,null,null,"Estimated Construction Start Date",null,null,null,"JPA"]
["Date Sent",null,null,null,null,null,null,null,null,null,null,null,null,null,null,null,null,null,null,null,null,null,null,null,"Auth. No.",null,null,null,null,null,null,null,"COSTS and BILLING DATA"]
[null,null,null,null,null,null,null,null,null,null,null,null,null,null,null,null,null,null,null,null,null,null,null,null,null,null,null,null,null,null,null,null,"BILLING CODES"]
["UTILITY","REPRESENTATIVE",null,null,null,null,null,"PHONE NUMBER/EMAIL",null,null,null,null,null,null,"DISTRICT-DIVISION-EXCHANGE",null,null,null,null,null,"APPROVED",null,null,null,null,null,"ACCOUNTING DATA"]
[null,null,null,null,null,null,null,null,null,null,null,null,null,null,null,null,null,null,null,null,null,null,null,null,null,null,null,null,null,null,null,null,"1. PLACED CURRENT YEAR\n2. PLACED PRIOR YEAR\n3. UNAUTHORIZED ATTACHMENT\n4. SALVAGE VALUE\n5. AUTHORIZED COSTS"]
[]
[]
[]
[]
[null,null,null,null,null,null,null,null,null,null,null,null,null,null,null,null,null,null,null,null,null,null,null,null,null,null,null,null,null,null,null,"BILL NO."]
[null,null,null,null,null,null,null,null,null,null,null,null,null,null,null,null,null,null,null,null,null,null,null,null,null,null,null,null,null,null,null,"AMOUNT DUE"]
[null,null,null,null,null,null,null,null,null,null,null,null,null,null,null,null,null,null,null,null,null,null,null,null,null,null,null,null,null,null,null,"BILL CODE","UTILITY",null,"BILL CODE","UTILITY"]
["POLE NO.",null,null,"Pole Length","Year                           Set","Pole Treat",null,"Record",null,null,null,null,null,null,null,"Proposed",null,null,null,null,null,null,null,"Item No.","LOCATION AND NATURE OF WORK                                                                                                                            If not in accordance with Joint Pole agreement and routine-state reasons.",null,null,null,null,null,null,null,"TOTAL AMT",null,null,"TOTAL AMT"]
[null,null,null,null,null,"Class"]
[null,null,null,"Anchor Size",null,"Anchor Direct.",null,null,null,null,null,null,null,null,null,null,null,null,null,null,null,null,null,null,null,null,null,null,null,null,null,null,"AMOUNT",null,null,"AMOUNT",null,"ACCOUNTING DIRECTIONS:"]
[null,null,null,null,null,null,null,null,null,null,null,null,null,null,null,null,null,null,null,null,null,null,null,null,null,null,null,null,null,null,1]
[null,null,null,null,null,null,null,null,null,null,null,null,null,null,null,null,null,null,null,null,null,null,null,null,null,null,null,null,null,null,2]
[null,null,null,null,null,null,null,null,null,null,null,null,null,null,null,null,null,null,null,null,null,null,null,null,null,null,null,null,null,null,3]
[null,null,null,null,null,null,null,null,null,null,null,null,null,null,null,null,null,null,null,null,null,null,null,null,null,null,null,null,null,null,4]
[null,null,null,null,null,null,null,null,null,null,null,null,null,null,null,null,null,null,null,null,null,null,null,null,null,null,null,null,null,null,5]
[null,null,null,null,null,null,null,null,null,null,null,null,null,null,null,null,null,null,null,null,null,null,null,null,null,null,null,null,null,null,6]
[null,null,null,null,null,null,null,null,null,null,null,null,null,null,null,null,null,null,null,null,null,null,null,null,null,null,null,null,null,null,7]
[null,null,null,null,null,null,null,null,null,null,null,null,null,null,null,null,null,null,null,null,null,null,null,null,null,null,null,null,null,null,8]
[null,null,null,null,null,null,null,null,null,null,null,null,null,null,null,null,null,null,null,null,null,null,null,null,null,null,null,null,null,null,9]
[null,null,null,null,null,null,null,null,null,null,null,null,null,null,null,null,null,null,null,null,null,null,null,null,null,null,null,null,null,null,10]
[null,null,null,null,null,null,null,null,null,null,null,null,null,null,null,null,null,null,null,null,null,null,null,null,null,null,null,null,null,null,11]
[null,null,null,null,null,null,null,null,null,null,null,null,null,null,null,null,null,null,null,null,null,null,null,null,null,null,null,null,null,null,12]
[null,null,null,null,null,null,null,null,null,null,null,null,null,null,null,null,null,null,null,null,null,null,null,null,null,null,null,null,null,null,13]
[null,null,null,null,null,null,null,null,null,null,null,null,null,null,null,null,null,null,null,null,null,null,null,null,null,null,null,null,null,null,null,"COLUMN",{"$f":"SUM(AG18:AH30)","v":0},null,null,{"$f":"SUM(AJ18:AK30)","v":0}]
["POLE LEGEND:",null,"L = LOWER TOP(Item 5E)",null,null,null,null,null,null,null,null,null,null,null,null,null,null,null,null,null,null,null,null,null,null,null,null,null,null,null,null,"TOTAL"]
["P = PULL (Item 5A)",null,"C(XX) = FOOTAGE CUT",null,null,null,null,null,null,null,null,null,null,null,null,null,null,null,null,null,null,null,null,"FORM 48 SENT"]
["PB = PULL BUTT",null,"SCZ = SAFETY CLEARANCE ZONE",null,null,null,null,null,"Show Quantity of",null,null,null,null,null,null,null,null,null,"GEOGRAPHICAL LOCATION"]
["T = TRANSPORT (Item 5B)",null,null,"SOP = SECTION OF POLE",null,null,null,null,"Items to be billed"]
["S = SALVAGE",null,"ANCHOR/ARM LEGEND:",null,null,null,null,null,"in the Column of"]
["D = DISPOSE (Item 5D)",null,"AR = ANCHOR/ARM REMOVED",null,null,null,null,null,"Party to be Paid. ",null,null,null,null,null,null,null,null,null,"COMMUNITY"]
["TN = TENANT",null,"AT = ANCHOR/ARM TRANSFERRED"]

{"sheet":"PAGE 2","index":1,"n_rows":35,"n_cols":38,"rows_kept":35,"cut":false,"hidden":false,"merged":[[3,30,5,30],[23,0,23,2],[21,5,21,6],[22,0,22,2],[21,0,21,2],[20,0,20,2],[24,0,24,2],[22,5,22,6],[24,5,24,6],[3,0,5,2],[3,3,4,3],[8,24,8,28],[6,5,6,6],[6,24,6,28],[3,23,5,23],[3,24,5,29],[3,7,3,14],[3,4,5,4],[3,5,3,6],[4,5,4,6],[3,15,3,22],[5,5,5,6],[23,5,23,6],[15,0,15,2],[20,5,20,6],[19,5,19,6],[18,5,18,6],[12,5,12,6],[13,5,13,6],[17,5,17,6],[16,5,16,6],[14,5,14,6],[15,5,15,6],[19,31,19,32],[6,0,6,2],[10,5,10,6],[11,5,11,6],[8,5,8,6],[7,5,7,6],[7,0,7,2],[9,5,9,6],[9,0,9,2],[8,0,8,2],[10,0,10,2],[11,0,11,2],[14,0,14,2],[13,0,13,2],[12,0,12,2],[19,0,19,2],[16,0,16,2],[18,0,18,2],[17,0,17,2],[31,16,31,19],[29,16,30,19],[28,16,28,19],[21,24,21,28],[23,24,23,28],[24,24,24,28],[22,24,22,28],[24,31,24,32],[25,31,26,32],[10,24,10,28],[11,24,11,28],[12,24,12,28],[14,24,14,28],[15,24,15,28],[20,24,20,28],[19,24,19,28],[17,24,17,28],[13,24,13,28],[16,24,16,28],[18,24,18,28],[25,24,29,28],[1,26,1,29],[1,37,1,38],[3,32,4,32],[3,35,4,35],[24,36,24,38],[17,36,17,38],[18,36,18,38],[19,36,19,38],[20,36,20,38],[17,34,17,35],[18,34,18,35],[19,34,19,35],[20,34,20,35],[21,34,21,35],[22,34,22,35],[23,34,23,35],[24,34,24,35],[20,31,20,32],[21,36,21,38],[22,36,22,38],[7,24,7,28],[6,31,6,32],[9,24,9,28],[0,34,0,38],[23,36,23,38],[13,36,13,38],[11,36,11,38],[12,36,12,38],[5,36,5,38],[1,32,1,34],[21,31,21,32],[22,31,22,32],[23,31,23,32],[6,36,6,38],[7,36,7,38],[8,36,8,38],[14,36,14,38],[15,36,15,38],[16,36,16,38],[9,36,9,38],[10,36,10,38],[6,34,6,35],[7,34,7,35],[8,34,8,35],[9,34,9,35],[10,34,10,35],[11,34,11,35],[3,36,3,38],[4,36,4,38],[3,33,5,33],[5,31,5,32],[5,34,5,35],[15,34,15,35],[16,34,16,35],[25,34,26,35],[7,31,7,32],[8,31,8,32],[9,31,9,32],[12,34,12,35],[13,34,13,35],[14,34,14,35],[25,36,29,38],[10,31,10,32],[11,31,11,32],[12,31,12,32],[13,31,13,32],[14,31,14,32],[15,31,15,32],[16,31,16,32],[17,31,17,32],[18,31,18,32]]}
["Page No.",2,"of",{"$f":"'PAGE 1'!E2","v":0},null,null,"FINAL",{"$f":"'PAGE 1'!J1","v":"Preliminary"},null,null,null,null,null,null,null,null,null,null,null,null,null,null,null,null,null,null,null,null,null,null,null,null,null,"BILL NO. "]
["J.P. FORM 2-1  Rev 07/20",null,null,null,null,null,null,null,null,null,null,null,null,null,null,null,null,null,null,null,null,null,null,null,null,"J.P. AUTH. NO. ",{"$f":"'PAGE 1'!AA4:AE4","v":0},null,null,null,null,null,"PAGE NO.",null,null,2,"OF",{"$f":"'PAGE 1'!E2","v":0}]
[]
["POLE NO.",null,null,"Pole Length","Year                           Set","Pole Trt",null,"Record",null,null,null,null,null,null,null,"Proposed",null,null,null,null,null,null,null,"Item No.","LOCATION AND NATURE OF WORK                                                                                                                            If not in accordance with Joint Pole agreement and routine-state reasons.",null,null,null,null,null,"BILL CODE","UTILITY",null,"BILL CODE","UTILITY"]
[null,null,null,null,null,"Class"]
[null,null,null,"Anchor Size",null,"Anchor Direct.",null,null,null,null,null,null,null,null,null,null,null,null,null,null,null,null,null,null,null,null,null,null,null,null,null,"AMOUNT",null,null,"AMOUNT",null,"ACCOUNTING DIRECTIONS:"]
[null,null,null,null,null,null,null,null,null,null,null,null,null,null,null,null,null,null,null,null,null,null,null,null,null,null,null,null,null,1]
[null,null,null,null,null,null,null,null,null,null,null,null,null,null,null,null,null,null,null,null,null,null,null,null,null,null,null,null,null,2]
[null,null,null,null,null,null,null,null,null,null,null,null,null,null,null,null,null,null,null,null,null,null,null,null,null,null,null,null,null,3]
[null,null,null,null,null,null,null,null,null,null,null,null,null,null,null,null,null,null,null,null,null,null,null,null,null,null,null,null,null,4]
[null,null,null,null,null,null,null,null,null,null,null,null,null,null,null,null,null,null,null,null,null,null,null,null,null,null,null,null,null,5]
[null,null,null,null,null,null,null,null,null,null,null,null,null,null,null,null,null,null,null,null,null,null,null,null,null,null,null,null,null,6]
[null,null,null,null,null,null,null,null,null,null,null,null,null,null,null,null,null,null,null,null,null,null,null,null,null,null,null,null,null,7]
[null,null,null,null,null,null,null,null,null,null,null,null,null,null,null,null,null,null,null,null,null,null,null,null,null,null,null,null,null,8]
[null,null,null,null,null,null,null,null,null,null,null,null,null,null,null,null,null,null,null,null,null,null,null,null,null,null,null,null,null,9]
[null,null,null,null,null,null,null,null,null,null,null,null,null,null,null,null,null,null,null,null,null,null,null,null,null,null,null,null,null,10]
[null,null,null,null,null,null,null,null,null,null,null,null,null,null,null,null,null,null,null,null,null,null,null,null,null,null,null,null,null,11]
[null,null,null,null,null,null,null,null,null,null,null,null,null,null,null,null,null,null,null,null,null,null,null,null,null,null,null,null,null,12]
[null,null,null,null,null,null,null,null,null,null,null,null,null,null,null,null,null,null,null,null,null,null,null,null,null,null,null,null,null,13]
[null,null,null,null,null,null,null,null,null,null,null,null,null,null,null,null,null,null,null,null,null,null,null,null,null,null,null,null,null,14]
[null,null,null,null,null,null,null,null,null,null,null,null,null,null,null,null,null,null,null,null,null,null,null,null,null,null,null,null,null,15]
[null,null,null,null,null,null,null,null,null,null,null,null,null,null,null,null,null,null,null,null,null,null,null,null,null,null,null,null,null,16]
[null,null,null,null,null,null,null,null,null,null,null,null,null,null,null,null,null,null,null,null,null,null,null,null,null,null,null,null,null,17]
[null,null,null,null,null,null,null,null,null,null,null,null,null,null,null,null,null,null,null,null,null,null,null,null,null,null,null,null,null,18]
[null,null,null,null,null,null,null,null,null,null,null,null,null,null,null,null,null,null,null,null,null,null,null,null,null,null,null,null,null,19]
[null,null,null,null,null,null,null,null,null,null,null,null,null,null,null,null,null,null,null,null,null,null,null,null,null,null,null,null,null,null,"COLUMN",{"$f":"SUM(AF7:AG25)","v":0},null,null,{"$f":"SUM(AI7:AJ25)","v":0}]
["POLE LEGEND:",null,"L = LOWER TOP(Item 5E)",null,null,null,null,null,null,null,null,null,null,null,null,null,null,null,null,null,null,null,null,null,null,null,null,null,null,null,"TOTAL"]
["P = PULL (Item 5A)",null,"C(XX) = FOOTAGE CUT"]
["PB = PULL BUTT",null,"SCZ = SAFETY CLEARANCE ZONE",null,null,null,null,null,"Show Quantity of",null,null,null,null,null,null,null,"GEOGRAPHICAL LOCATION"]
["T = TRANSPORT (Item 5B)",null,null,"SOP = SECTION OF POLE",null,null,null,null,"Items to be billed"]
["S = SALVAGE",null,"ANCHOR/ARM LEGEND:",null,null,null,null,null,"in the Column of"]
["D = DISPOSE (Item 5D)",null,"AR = ANCHOR/ARM REMOVED",null,null,null,null,null,"Party to be Paid. ",null,null,null,null,null,null,null,"COMMUNITY"]
["TN = TENANT",null,"AT = ANCHOR/ARM TRANSFERRED"]
[]
[null,null,null,null,null,null,null,null,null,null,null,null,null,null,null,null,null,null,null,null,null,null,null,null,null,null,null,null,null,null,null,null,{"$f":"AG31","v":0},null,null,{"$f":"AJ31","v":0}]

{"sheet":"PAGE 3","index":2,"n_rows":35,"n_cols":38,"rows_kept":35,"cut":false,"hidden":false,"merged":[[31,16,31,19],[25,24,29,28],[25,31,26,32],[25,34,26,35],[25,36,29,38],[28,16,28,19],[29,16,30,19],[24,0,24,2],[24,5,24,6],[24,24,24,28],[24,31,24,32],[24,34,24,35],[24,36,24,38],[23,0,23,2],[23,5,23,6],[23,24,23,28],[23,31,23,32],[23,34,23,35],[23,36,23,38],[22,0,22,2],[22,5,22,6],[22,24,22,28],[22,31,22,32],[22,34,22,35],[22,36,22,38],[21,0,21,2],[21,5,21,6],[21,24,21,28],[21,31,21,32],[21,34,21,35],[21,36,21,38],[20,0,20,2],[20,5,20,6],[20,24,20,28],[20,31,20,32],[20,34,20,35],[20,36,20,38],[19,0,19,2],[19,5,19,6],[19,24,19,28],[19,31,19,32],[19,34,19,35],[19,36,19,38],[18,0,18,2],[18,5,18,6],[18,24,18,28],[18,31,18,32],[18,34,18,35],[18,36,18,38],[17,0,17,2],[17,5,17,6],[17,24,17,28],[17,31,17,32],[17,34,17,35],[17,36,17,38],[16,0,16,2],[16,5,16,6],[16,24,16,28],[16,31,16,32],[16,34,16,35],[16,36,16,38],[15,0,15,2],[15,5,15,6],[15,24,15,28],[15,31,15,32],[15,34,15,35],[15,36,15,38],[14,0,14,2],[14,5,14,6],[14,24,14,28],[14,31,14,32],[14,34,14,35],[14,36,14,38],[13,0,13,2],[13,5,13,6],[13,24,13,28],[13,31,13,32],[13,34,13,35],[13,36,13,38],[12,0,12,2],[12,5,12,6],[12,24,12,28],[12,31,12,32],[12,34,12,35],[12,36,12,38],[11,0,11,2],[11,5,11,6],[11,24,11,28],[11,31,11,32],[11,34,11,35],[11,36,11,38],[10,0,10,2],[10,5,10,6],[10,24,10,28],[10,31,10,32],[10,34,10,35],[10,36,10,38],[9,0,9,2],[9,5,9,6],[9,24,9,28],[9,31,9,32],[9,34,9,35],[9,36,9,38],[8,0,8,2],[8,5,8,6],[8,24,8,28],[8,31,8,32],[8,34,8,35],[8,36,8,38],[7,0,7,2],[7,5,7,6],[7,24,7,28],[7,31,7,32],[7,34,7,35],[7,36,7,38],[6,0,6,2],[6,5,6,6],[6,24,6,28],[6,31,6,32],[6,34,6,35],[6,36,6,38],[0,34,0,38],[1,26,1,29],[1,32,1,34],[1,37,1,38],[3,0,5,2],[3,3,4,3],[3,4,5,4],[3,5,3,6],[3,7,3,14],[3,15,3,22],[3,36,3,38],[4,5,4,6],[4,36,4,38],[5,5,5,6],[5,31,5,32],[5,34,5,35],[5,36,5,38],[3,23,5,23],[3,24,5,29],[3,30,5,30],[3,32,4,32],[3,33,5,33],[3,35,4,35]]}
["Page No.",3,"of",{"$f":"'PAGE 1'!E2","v":0},null,null,"FINAL",{"$f":"'PAGE 1'!J1","v":"Preliminary"},null,null,null,null,null,null,null,null,null,null,null,null,null,null,null,null,null,null,null,null,null,null,null,null,null,"BILL NO. "]
["J.P. FORM 2-1  Rev 07/20",null,null,null,null,null,null,null,null,null,null,null,null,null,null,null,null,null,null,null,null,null,null,null,null,"J.P. AUTH. NO. ",{"$f":"'PAGE 1'!AA4:AE4","v":0},null,null,null,null,null,"PAGE NO.",null,null,3,"OF",{"$f":"'PAGE 1'!E2","v":0}]
[]
["POLE NO.",null,null,"Pole Length","Year                           Set","Pole Trt",null,"Record",null,null,null,null,null,null,null,"Proposed",null,null,null,null,null,null,null,"Item No.","LOCATION AND NATURE OF WORK                                                                                                                            If not in accordance with Joint Pole agreement and routine-state reasons.",null,null,null,null,null,"BILL CODE","UTILITY",null,"BILL CODE","UTILITY"]
[null,null,null,null,null,"Class"]
[null,null,null,"Anchor Size",null,"Anchor Direct.",null,null,null,null,null,null,null,null,null,null,null,null,null,null,null,null,null,null,null,null,null,null,null,null,null,"AMOUNT",null,null,"AMOUNT",null,"ACCOUNTING DIRECTIONS:"]
[null,null,null,null,null,null,null,null,null,null,null,null,null,null,null,null,null,null,null,null,null,null,null,null,null,null,null,null,null,1]
[null,null,null,null,null,null,null,null,null,null,null,null,null,null,null,null,null,null,null,null,null,null,null,null,null,null,null,null,null,2]
[null,null,null,null,null,null,null,null,null,null,null,null,null,null,null,null,null,null,null,null,null,null,null,null,null,null,null,null,null,3]
[null,null,null,null,null,null,null,null,null,null,null,null,null,null,null,null,null,null,null,null,null,null,null,null,null,null,null,null,null,4]
[null,null,null,null,null,null,null,null,null,null,null,null,null,null,null,null,null,null,null,null,null,null,null,null,null,null,null,null,null,5]
[null,null,null,null,null,null,null,null,null,null,null,null,null,null,null,null,null,null,null,null,null,null,null,null,null,null,null,null,null,6]
[null,null,null,null,null,null,null,null,null,null,null,null,null,null,null,null,null,null,null,null,null,null,null,null,null,null,null,null,null,7]
[null,null,null,null,null,null,null,null,null,null,null,null,null,null,null,null,null,null,null,null,null,null,null,null,null,null,null,null,null,8]
[null,null,null,null,null,null,null,null,null,null,null,null,null,null,null,null,null,null,null,null,null,null,null,null,null,null,null,null,null,9]
[null,null,null,null,null,null,null,null,null,null,null,null,null,null,null,null,null,null,null,null,null,null,null,null,null,null,null,null,null,10]
[null,null,null,null,null,null,null,null,null,null,null,null,null,null,null,null,null,null,null,null,null,null,null,null,null,null,null,null,null,11]
[null,null,null,null,null,null,null,null,null,null,null,null,null,null,null,null,null,null,null,null,null,null,null,null,null,null,null,null,null,12]
[null,null,null,null,null,null,null,null,null,null,null,null,null,null,null,null,null,null,null,null,null,null,null,null,null,null,null,null,null,13]
[null,null,null,null,null,null,null,null,null,null,null,null,null,null,null,null,null,null,null,null,null,null,null,null,null,null,null,null,null,14]
[null,null,null,null,null,null,null,null,null,null,null,null,null,null,null,null,null,null,null,null,null,null,null,null,null,null,null,null,null,15]
[null,null,null,null,null,null,null,null,null,null,null,null,null,null,null,null,null,null,null,null,null,null,null,null,null,null,null,null,null,16]
[null,null,null,null,null,null,null,null,null,null,null,null,null,null,null,null,null,null,null,null,null,null,null,null,null,null,null,null,null,17]
[null,null,null,null,null,null,null,null,null,null,null,null,null,null,null,null,null,null,null,null,null,null,null,null,null,null,null,null,null,18]
[null,null,null,null,null,null,null,null,null,null,null,null,null,null,null,null,null,null,null,null,null,null,null,null,null,null,null,null,null,19]
[null,null,null,null,null,null,null,null,null,null,null,null,null,null,null,null,null,null,null,null,null,null,null,null,null,null,null,null,null,null,"COLUMN",{"$f":"SUM(AF7:AG25)","v":0},null,null,{"$f":"SUM(AI7:AJ25)","v":0}]
["POLE LEGEND:",null,"L = LOWER TOP(Item 5E)",null,null,null,null,null,null,null,null,null,null,null,null,null,null,null,null,null,null,null,null,null,null,null,null,null,null,null,"TOTAL"]
["P = PULL (Item 5A)",null,"C(XX) = FOOTAGE CUT"]
["PB = PULL BUTT",null,"SCZ = SAFETY CLEARANCE ZONE",null,null,null,null,null,"Show Quantity of",null,null,null,null,null,null,null,"GEOGRAPHICAL LOCATION"]
["T = TRANSPORT (Item 5B)",null,null,"SOP = SECTION OF POLE",null,null,null,null,"Items to be billed"]
["S = SALVAGE",null,"ANCHOR/ARM LEGEND:",null,null,null,null,null,"in the Column of"]
["D = DISPOSE (Item 5D)",null,"AR = ANCHOR/ARM REMOVED",null,null,null,null,null,"Party to be Paid. ",null,null,null,null,null,null,null,"COMMUNITY"]
["TN = TENANT",null,"AT = ANCHOR/ARM TRANSFERRED"]
[]
[null,null,null,null,null,null,null,null,null,null,null,null,null,null,null,null,null,null,null,null,null,null,null,null,null,null,null,null,null,null,null,null,{"$f":"AG31","v":0},null,null,{"$f":"AJ31","v":0}]

{"sheet":"PAGE 4","index":3,"n_rows":35,"n_cols":38,"rows_kept":35,"cut":false,"hidden":false,"merged":[[31,16,31,19],[25,24,29,28],[25,31,26,32],[25,34,26,35],[25,36,29,38],[28,16,28,19],[29,16,30,19],[24,0,24,2],[24,5,24,6],[24,24,24,28],[24,31,24,32],[24,34,24,35],[24,36,24,38],[23,0,23,2],[23,5,23,6],[23,24,23,28],[23,31,23,32],[23,34,23,35],[23,36,23,38],[22,0,22,2],[22,5,22,6],[22,24,22,28],[22,31,22,32],[22,34,22,35],[22,36,22,38],[21,0,21,2],[21,5,21,6],[21,24,21,28],[21,31,21,32],[21,34,21,35],[21,36,21,38],[20,0,20,2],[20,5,20,6],[20,24,20,28],[20,31,20,32],[20,34,20,35],[20,36,20,38],[19,0,19,2],[19,5,19,6],[19,24,19,28],[19,31,19,32],[19,34,19,35],[19,36,19,38],[18,0,18,2],[18,5,18,6],[18,24,18,28],[18,31,18,32],[18,34,18,35],[18,36,18,38],[17,0,17,2],[17,5,17,6],[17,24,17,28],[17,31,17,32],[17,34,17,35],[17,36,17,38],[16,0,16,2],[16,5,16,6],[16,24,16,28],[16,31,16,32],[16,34,16,35],[16,36,16,38],[15,0,15,2],[15,5,15,6],[15,24,15,28],[15,31,15,32],[15,34,15,35],[15,36,15,38],[14,0,14,2],[14,5,14,6],[14,24,14,28],[14,31,14,32],[14,34,14,35],[14,36,14,38],[13,0,13,2],[13,5,13,6],[13,24,13,28],[13,31,13,32],[13,34,13,35],[13,36,13,38],[12,0,12,2],[12,5,12,6],[12,24,12,28],[12,31,12,32],[12,34,12,35],[12,36,12,38],[11,0,11,2],[11,5,11,6],[11,24,11,28],[11,31,11,32],[11,34,11,35],[11,36,11,38],[10,0,10,2],[10,5,10,6],[10,24,10,28],[10,31,10,32],[10,34,10,35],[10,36,10,38],[9,0,9,2],[9,5,9,6],[9,24,9,28],[9,31,9,32],[9,34,9,35],[9,36,9,38],[8,0,8,2],[8,5,8,6],[8,24,8,28],[8,31,8,32],[8,34,8,35],[8,36,8,38],[7,0,7,2],[7,5,7,6],[7,24,7,28],[7,31,7,32],[7,34,7,35],[7,36,7,38],[6,0,6,2],[6,5,6,6],[6,24,6,28],[6,31,6,32],[6,34,6,35],[6,36,6,38],[0,34,0,38],[1,26,1,29],[1,32,1,34],[1,37,1,38],[3,0,5,2],[3,3,4,3],[3,4,5,4],[3,5,3,6],[3,7,3,14],[3,15,3,22],[3,36,3,38],[4,5,4,6],[4,36,4,38],[5,5,5,6],[5,31,5,32],[5,34,5,35],[5,36,5,38],[3,23,5,23],[3,24,5,29],[3,30,5,30],[3,32,4,32],[3,33,5,33],[3,35,4,35]]}
["Page No.",4,"of",{"$f":"'PAGE 1'!E2","v":0},null,null,"FINAL",{"$f":"'PAGE 1'!J1","v":"Preliminary"},null,null,null,null,null,null,null,null,null,null,null,null,null,null,null,null,null,null,null,null,null,null,null,null,null,"BILL NO. "]
["J.P. FORM 2-1  Rev 07/20",null,null,null,null,null,null,null,null,null,null,null,null,null,null,null,null,null,null,null,null,null,null,null,null,"J.P. AUTH. NO. ",{"$f":"'PAGE 1'!AA4:AE4","v":0},null,null,null,null,null,"PAGE NO.",null,null,4,"OF",{"$f":"'PAGE 1'!E2","v":0}]
[]
["POLE NO.",null,null,"Pole Length","Year                           Set","Pole Trt",null,"Record",null,null,null,null,null,null,null,"Proposed",null,null,null,null,null,null,null,"Item No.","LOCATION AND NATURE OF WORK                                                                                                                            If not in accordance with Joint Pole agreement and routine-state reasons.",null,null,null,null,null,"BILL CODE","UTILITY",null,"BILL CODE","UTILITY"]
[null,null,null,null,null,"Class"]
[null,null,null,"Anchor Size",null,"Anchor Direct.",null,null,null,null,null,null,null,null,null,null,null,null,null,null,null,null,null,null,null,null,null,null,null,null,null,"AMOUNT",null,null,"AMOUNT",null,"ACCOUNTING DIRECTIONS:"]
[null,null,null,null,null,null,null,null,null,null,null,null,null,null,null,null,null,null,null,null,null,null,null,null,null,null,null,null,null,1]
[null,null,null,null,null,null,null,null,null,null,null,null,null,null,null,null,null,null,null,null,null,null,null,null,null,null,null,null,null,2]
[null,null,null,null,null,null,null,null,null,null,null,null,null,null,null,null,null,null,null,null,null,null,null,null,null,null,null,null,null,3]
[null,null,null,null,null,null,null,null,null,null,null,null,null,null,null,null,null,null,null,null,null,null,null,null,null,null,null,null,null,4]
[null,null,null,null,null,null,null,null,null,null,null,null,null,null,null,null,null,null,null,null,null,null,null,null,null,null,null,null,null,5]
[null,null,null,null,null,null,null,null,null,null,null,null,null,null,null,null,null,null,null,null,null,null,null,null,null,null,null,null,null,6]
[null,null,null,null,null,null,null,null,null,null,null,null,null,null,null,null,null,null,null,null,null,null,null,null,null,null,null,null,null,7]
[null,null,null,null,null,null,null,null,null,null,null,null,null,null,null,null,null,null,null,null,null,null,null,null,null,null,null,null,null,8]
[null,null,null,null,null,null,null,null,null,null,null,null,null,null,null,null,null,null,null,null,null,null,null,null,null,null,null,null,null,9]
[null,null,null,null,null,null,null,null,null,null,null,null,null,null,null,null,null,null,null,null,null,null,null,null,null,null,null,null,null,10]
[null,null,null,null,null,null,null,null,null,null,null,null,null,null,null,null,null,null,null,null,null,null,null,null,null,null,null,null,null,11]
[null,null,null,null,null,null,null,null,null,null,null,null,null,null,null,null,null,null,null,null,null,null,null,null,null,null,null,null,null,12]
[null,null,null,null,null,null,null,null,null,null,null,null,null,null,null,null,null,null,null,null,null,null,null,null,null,null,null,null,null,13]
[null,null,null,null,null,null,null,null,null,null,null,null,null,null,null,null,null,null,null,null,null,null,null,null,null,null,null,null,null,14]
[null,null,null,null,null,null,null,null,null,null,null,null,null,null,null,null,null,null,null,null,null,null,null,null,null,null,null,null,null,15]
[null,null,null,null,null,null,null,null,null,null,null,null,null,null,null,null,null,null,null,null,null,null,null,null,null,null,null,null,null,16]
[null,null,null,null,null,null,null,null,null,null,null,null,null,null,null,null,null,null,null,null,null,null,null,null,null,null,null,null,null,17]
[null,null,null,null,null,null,null,null,null,null,null,null,null,null,null,null,null,null,null,null,null,null,null,null,null,null,null,null,null,18]
[null,null,null,null,null,null,null,null,null,null,null,null,null,null,null,null,null,null,null,null,null,null,null,null,null,null,null,null,null,19]
[null,null,null,null,null,null,null,null,null,null,null,null,null,null,null,null,null,null,null,null,null,null,null,null,null,null,null,null,null,null,"COLUMN",{"$f":"SUM(AF7:AG25)","v":0},null,null,{"$f":"SUM(AI7:AJ25)","v":0}]
["POLE LEGEND:",null,"L = LOWER TOP(Item 5E)",null,null,null,null,null,null,null,null,null,null,null,null,null,null,null,null,null,null,null,null,null,null,null,null,null,null,null,"TOTAL"]
["P = PULL (Item 5A)",null,"C(XX) = FOOTAGE CUT"]
["PB = PULL BUTT",null,"SCZ = SAFETY CLEARANCE ZONE",null,null,null,null,null,"Show Quantity of",null,null,null,null,null,null,null,"GEOGRAPHICAL LOCATION"]
["T = TRANSPORT (Item 5B)",null,null,"SOP = SECTION OF POLE",null,null,null,null,"Items to be billed"]
["S = SALVAGE",null,"ANCHOR/ARM LEGEND:",null,null,null,null,null,"in the Column of"]
["D = DISPOSE (Item 5D)",null,"AR = ANCHOR/ARM REMOVED",null,null,null,null,null,"Party to be Paid. ",null,null,null,null,null,null,null,"COMMUNITY"]
["TN = TENANT",null,"AT = ANCHOR/ARM TRANSFERRED"]
[]
[null,null,null,null,null,null,null,null,null,null,null,null,null,null,null,null,null,null,null,null,null,null,null,null,null,null,null,null,null,null,null,null,{"$f":"AG31","v":0},null,null,{"$f":"AJ31","v":0}]

{"sheet":"PAGE 5","index":4,"n_rows":35,"n_cols":38,"rows_kept":35,"cut":false,"hidden":false,"merged":[[31,16,31,19],[25,24,29,28],[25,31,26,32],[25,34,26,35],[25,36,29,38],[28,16,28,19],[29,16,30,19],[24,0,24,2],[24,5,24,6],[24,24,24,28],[24,31,24,32],[24,34,24,35],[24,36,24,38],[23,0,23,2],[23,5,23,6],[23,24,23,28],[23,31,23,32],[23,34,23,35],[23,36,23,38],[22,0,22,2],[22,5,22,6],[22,24,22,28],[22,31,22,32],[22,34,22,35],[22,36,22,38],[21,0,21,2],[21,5,21,6],[21,24,21,28],[21,31,21,32],[21,34,21,35],[21,36,21,38],[20,0,20,2],[20,5,20,6],[20,24,20,28],[20,31,20,32],[20,34,20,35],[20,36,20,38],[19,0,19,2],[19,5,19,6],[19,24,19,28],[19,31,19,32],[19,34,19,35],[19,36,19,38],[18,0,18,2],[18,5,18,6],[18,24,18,28],[18,31,18,32],[18,34,18,35],[18,36,18,38],[17,0,17,2],[17,5,17,6],[17,24,17,28],[17,31,17,32],[17,34,17,35],[17,36,17,38],[16,0,16,2],[16,5,16,6],[16,24,16,28],[16,31,16,32],[16,34,16,35],[16,36,16,38],[15,0,15,2],[15,5,15,6],[15,24,15,28],[15,31,15,32],[15,34,15,35],[15,36,15,38],[14,0,14,2],[14,5,14,6],[14,24,14,28],[14,31,14,32],[14,34,14,35],[14,36,14,38],[13,0,13,2],[13,5,13,6],[13,24,13,28],[13,31,13,32],[13,34,13,35],[13,36,13,38],[12,0,12,2],[12,5,12,6],[12,24,12,28],[12,31,12,32],[12,34,12,35],[12,36,12,38],[11,0,11,2],[11,5,11,6],[11,24,11,28],[11,31,11,32],[11,34,11,35],[11,36,11,38],[10,0,10,2],[10,5,10,6],[10,24,10,28],[10,31,10,32],[10,34,10,35],[10,36,10,38],[9,0,9,2],[9,5,9,6],[9,24,9,28],[9,31,9,32],[9,34,9,35],[9,36,9,38],[8,0,8,2],[8,5,8,6],[8,24,8,28],[8,31,8,32],[8,34,8,35],[8,36,8,38],[7,0,7,2],[7,5,7,6],[7,24,7,28],[7,31,7,32],[7,34,7,35],[7,36,7,38],[6,0,6,2],[6,5,6,6],[6,24,6,28],[6,31,6,32],[6,34,6,35],[6,36,6,38],[0,34,0,38],[1,26,1,29],[1,32,1,34],[1,37,1,38],[3,0,5,2],[3,3,4,3],[3,4,5,4],[3,5,3,6],[3,7,3,14],[3,15,3,22],[3,36,3,38],[4,5,4,6],[4,36,4,38],[5,5,5,6],[5,31,5,32],[5,34,5,35],[5,36,5,38],[3,23,5,23],[3,24,5,29],[3,30,5,30],[3,32,4,32],[3,33,5,33],[3,35,4,35]]}
["Page No.",5,"of",{"$f":"'PAGE 1'!E2","v":0},null,null,"FINAL",{"$f":"'PAGE 1'!J1","v":"Preliminary"},null,null,null,null,null,null,null,null,null,null,null,null,null,null,null,null,null,null,null,null,null,null,null,null,null,"BILL NO. "]
["J.P. FORM 2-1  Rev 07/20",null,null,null,null,null,null,null,null,null,null,null,null,null,null,null,null,null,null,null,null,null,null,null,null,"J.P. AUTH. NO. ",{"$f":"'PAGE 1'!AA4:AE4","v":0},null,null,null,null,null,"PAGE NO.",null,null,5,"OF",{"$f":"'PAGE 1'!E2","v":0}]
[]
["POLE NO.",null,null,"Pole Length","Year                           Set","Pole Trt",null,"Record",null,null,null,null,null,null,null,"Proposed",null,null,null,null,null,null,null,"Item No.","LOCATION AND NATURE OF WORK                                                                                                                            If not in accordance with Joint Pole agreement and routine-state reasons.",null,null,null,null,null,"BILL CODE","UTILITY",null,"BILL CODE","UTILITY"]
[null,null,null,null,null,"Class"]
[null,null,null,"Anchor Size",null,"Anchor Direct.",null,null,null,null,null,null,null,null,null,null,null,null,null,null,null,null,null,null,null,null,null,null,null,null,null,"AMOUNT",null,null,"AMOUNT",null,"ACCOUNTING DIRECTIONS:"]
[null,null,null,null,null,null,null,null,null,null,null,null,null,null,null,null,null,null,null,null,null,null,null,null,null,null,null,null,null,1]
[null,null,null,null,null,null,null,null,null,null,null,null,null,null,null,null,null,null,null,null,null,null,null,null,null,null,null,null,null,2]
[null,null,null,null,null,null,null,null,null,null,null,null,null,null,null,null,null,null,null,null,null,null,null,null,null,null,null,null,null,3]
[null,null,null,null,null,null,null,null,null,null,null,null,null,null,null,null,null,null,null,null,null,null,null,null,null,null,null,null,null,4]
[null,null,null,null,null,null,null,null,null,null,null,null,null,null,null,null,null,null,null,null,null,null,null,null,null,null,null,null,null,5]
[null,null,null,null,null,null,null,null,null,null,null,null,null,null,null,null,null,null,null,null,null,null,null,null,null,null,null,null,null,6]
[null,null,null,null,null,null,null,null,null,null,null,null,null,null,null,null,null,null,null,null,null,null,null,null,null,null,null,null,null,7]
[null,null,null,null,null,null,null,null,null,null,null,null,null,null,null,null,null,null,null,null,null,null,null,null,null,null,null,null,null,8]
[null,null,null,null,null,null,null,null,null,null,null,null,null,null,null,null,null,null,null,null,null,null,null,null,null,null,null,null,null,9]
[null,null,null,null,null,null,null,null,null,null,null,null,null,null,null,null,null,null,null,null,null,null,null,null,null,null,null,null,null,10]
[null,null,null,null,null,null,null,null,null,null,null,null,null,null,null,null,null,null,null,null,null,null,null,null,null,null,null,null,null,11]
[null,null,null,null,null,null,null,null,null,null,null,null,null,null,null,null,null,null,null,null,null,null,null,null,null,null,null,null,null,12]
[null,null,null,null,null,null,null,null,null,null,null,null,null,null,null,null,null,null,null,null,null,null,null,null,null,null,null,null,null,13]
[null,null,null,null,null,null,null,null,null,null,null,null,null,null,null,null,null,null,null,null,null,null,null,null,null,null,null,null,null,14]
[null,null,null,null,null,null,null,null,null,null,null,null,null,null,null,null,null,null,null,null,null,null,null,null,null,null,null,null,null,15]
[null,null,null,null,null,null,null,null,null,null,null,null,null,null,null,null,null,null,null,null,null,null,null,null,null,null,null,null,null,16]
[null,null,null,null,null,null,null,null,null,null,null,null,null,null,null,null,null,null,null,null,null,null,null,null,null,null,null,null,null,17]
[null,null,null,null,null,null,null,null,null,null,null,null,null,null,null,null,null,null,null,null,null,null,null,null,null,null,null,null,null,18]
[null,null,null,null,null,null,null,null,null,null,null,null,null,null,null,null,null,null,null,null,null,null,null,null,null,null,null,null,null,19]
[null,null,null,null,null,null,null,null,null,null,null,null,null,null,null,null,null,null,null,null,null,null,null,null,null,null,null,null,null,null,"COLUMN",{"$f":"SUM(AF7:AG25)","v":0},null,null,{"$f":"SUM(AI7:AJ25)","v":0}]
["POLE LEGEND:",null,"L = LOWER TOP(Item 5E)",null,null,null,null,null,null,null,null,null,null,null,null,null,null,null,null,null,null,null,null,null,null,null,null,null,null,null,"TOTAL"]
["P = PULL (Item 5A)",null,"C(XX) = FOOTAGE CUT"]
["PB = PULL BUTT",null,"SCZ = SAFETY CLEARANCE ZONE",null,null,null,null,null,"Show Quantity of",null,null,null,null,null,null,null,"GEOGRAPHICAL LOCATION"]
["T = TRANSPORT (Item 5B)",null,null,"SOP = SECTION OF POLE",null,null,null,null,"Items to be billed"]
["S = SALVAGE",null,"ANCHOR/ARM LEGEND:",null,null,null,null,null,"in the Column of"]
["D = DISPOSE (Item 5D)",null,"AR = ANCHOR/ARM REMOVED",null,null,null,null,null,"Party to be Paid. ",null,null,null,null,null,null,null,"COMMUNITY"]
["TN = TENANT",null,"AT = ANCHOR/ARM TRANSFERRED"]
[]
[null,null,null,null,null,null,null,null,null,null,null,null,null,null,null,null,null,null,null,null,null,null,null,null,null,null,null,null,null,null,null,null,{"$f":"AG31","v":0},null,null,{"$f":"AJ31","v":0}]

{"sheet":"PAGE 6","index":5,"n_rows":35,"n_cols":38,"rows_kept":35,"cut":false,"hidden":false,"merged":[[31,16,31,19],[25,24,29,28],[25,31,26,32],[25,34,26,35],[25,36,29,38],[28,16,28,19],[29,16,30,19],[24,0,24,2],[24,5,24,6],[24,24,24,28],[24,31,24,32],[24,34,24,35],[24,36,24,38],[23,0,23,2],[23,5,23,6],[23,24,23,28],[23,31,23,32],[23,34,23,35],[23,36,23,38],[22,0,22,2],[22,5,22,6],[22,24,22,28],[22,31,22,32],[22,34,22,35],[22,36,22,38],[21,0,21,2],[21,5,21,6],[21,24,21,28],[21,31,21,32],[21,34,21,35],[21,36,21,38],[20,0,20,2],[20,5,20,6],[20,24,20,28],[20,31,20,32],[20,34,20,35],[20,36,20,38],[19,0,19,2],[19,5,19,6],[19,24,19,28],[19,31,19,32],[19,34,19,35],[19,36,19,38],[18,0,18,2],[18,5,18,6],[18,24,18,28],[18,31,18,32],[18,34,18,35],[18,36,18,38],[17,0,17,2],[17,5,17,6],[17,24,17,28],[17,31,17,32],[17,34,17,35],[17,36,17,38],[16,0,16,2],[16,5,16,6],[16,24,16,28],[16,31,16,32],[16,34,16,35],[16,36,16,38],[15,0,15,2],[15,5,15,6],[15,24,15,28],[15,31,15,32],[15,34,15,35],[15,36,15,38],[14,0,14,2],[14,5,14,6],[14,24,14,28],[14,31,14,32],[14,34,14,35],[14,36,14,38],[13,0,13,2],[13,5,13,6],[13,24,13,28],[13,31,13,32],[13,34,13,35],[13,36,13,38],[12,0,12,2],[12,5,12,6],[12,24,12,28],[12,31,12,32],[12,34,12,35],[12,36,12,38],[11,0,11,2],[11,5,11,6],[11,24,11,28],[11,31,11,32],[11,34,11,35],[11,36,11,38],[10,0,10,2],[10,5,10,6],[10,24,10,28],[10,31,10,32],[10,34,10,35],[10,36,10,38],[9,0,9,2],[9,5,9,6],[9,24,9,28],[9,31,9,32],[9,34,9,35],[9,36,9,38],[8,0,8,2],[8,5,8,6],[8,24,8,28],[8,31,8,32],[8,34,8,35],[8,36,8,38],[7,0,7,2],[7,5,7,6],[7,24,7,28],[7,31,7,32],[7,34,7,35],[7,36,7,38],[6,0,6,2],[6,5,6,6],[6,24,6,28],[6,31,6,32],[6,34,6,35],[6,36,6,38],[0,34,0,38],[1,26,1,29],[1,32,1,34],[1,37,1,38],[3,0,5,2],[3,3,4,3],[3,4,5,4],[3,5,3,6],[3,7,3,14],[3,15,3,22],[3,36,3,38],[4,5,4,6],[4,36,4,38],[5,5,5,6],[5,31,5,32],[5,34,5,35],[5,36,5,38],[3,23,5,23],[3,24,5,29],[3,30,5,30],[3,32,4,32],[3,33,5,33],[3,35,4,35]]}
["Page No.",6,"of",{"$f":"'PAGE 1'!E2","v":0},null,null,"FINAL",{"$f":"'PAGE 1'!J1","v":"Preliminary"},null,null,null,null,null,null,null,null,null,null,null,null,null,null,null,null,null,null,null,null,null,null,null,null,null,"BILL NO. "]
["J.P. FORM 2-1  Rev 07/20",null,null,null,null,null,null,null,null,null,null,null,null,null,null,null,null,null,null,null,null,null,null,null,null,"J.P. AUTH. NO. ",{"$f":"'PAGE 1'!AA4:AE4","v":0},null,null,null,null,null,"PAGE NO.",null,null,6,"OF",{"$f":"'PAGE 1'!E2","v":0}]
[]
["POLE NO.",null,null,"Pole Length","Year                           Set","Pole Trt",null,"Record",null,null,null,null,null,null,null,"Proposed",null,null,null,null,null,null,null,"Item No.","LOCATION AND NATURE OF WORK                                                                                                                            If not in accordance with Joint Pole agreement and routine-state reasons.",null,null,null,null,null,"BILL CODE","UTILITY",null,"BILL CODE","UTILITY"]
[null,null,null,null,null,"Class"]
[null,null,null,"Anchor Size",null,"Anchor Direct.",null,null,null,null,null,null,null,null,null,null,null,null,null,null,null,null,null,null,null,null,null,null,null,null,null,"AMOUNT",null,null,"AMOUNT",null,"ACCOUNTING DIRECTIONS:"]
[null,null,null,null,null,null,null,null,null,null,null,null,null,null,null,null,null,null,null,null,null,null,null,null,null,null,null,null,null,1]
[null,null,null,null,null,null,null,null,null,null,null,null,null,null,null,null,null,null,null,null,null,null,null,null,null,null,null,null,null,2]
[null,null,null,null,null,null,null,null,null,null,null,null,null,null,null,null,null,null,null,null,null,null,null,null,null,null,null,null,null,3]
[null,null,null,null,null,null,null,null,null,null,null,null,null,null,null,null,null,null,null,null,null,null,null,null,null,null,null,null,null,4]
[null,null,null,null,null,null,null,null,null,null,null,null,null,null,null,null,null,null,null,null,null,null,null,null,null,null,null,null,null,5]
[null,null,null,null,null,null,null,null,null,null,null,null,null,null,null,null,null,null,null,null,null,null,null,null,null,null,null,null,null,6]
[null,null,null,null,null,null,null,null,null,null,null,null,null,null,null,null,null,null,null,null,null,null,null,null,null,null,null,null,null,7]
[null,null,null,null,null,null,null,null,null,null,null,null,null,null,null,null,null,null,null,null,null,null,null,null,null,null,null,null,null,8]
[null,null,null,null,null,null,null,null,null,null,null,null,null,null,null,null,null,null,null,null,null,null,null,null,null,null,null,null,null,9]
[null,null,null,null,null,null,null,null,null,null,null,null,null,null,null,null,null,null,null,null,null,null,null,null,null,null,null,null,null,10]
[null,null,null,null,null,null,null,null,null,null,null,null,null,null,null,null,null,null,null,null,null,null,null,null,null,null,null,null,null,11]
[null,null,null,null,null,null,null,null,null,null,null,null,null,null,null,null,null,null,null,null,null,null,null,null,null,null,null,null,null,12]
[null,null,null,null,null,null,null,null,null,null,null,null,null,null,null,null,null,null,null,null,null,null,null,null,null,null,null,null,null,13]
[null,null,null,null,null,null,null,null,null,null,null,null,null,null,null,null,null,null,null,null,null,null,null,null,null,null,null,null,null,14]
[null,null,null,null,null,null,null,null,null,null,null,null,null,null,null,null,null,null,null,null,null,null,null,null,null,null,null,null,null,15]
[null,null,null,null,null,null,null,null,null,null,null,null,null,null,null,null,null,null,null,null,null,null,null,null,null,null,null,null,null,16]
[null,null,null,null,null,null,null,null,null,null,null,null,null,null,null,null,null,null,null,null,null,null,null,null,null,null,null,null,null,17]
[null,null,null,null,null,null,null,null,null,null,null,null,null,null,null,null,null,null,null,null,null,null,null,null,null,null,null,null,null,18]
[null,null,null,null,null,null,null,null,null,null,null,null,null,null,null,null,null,null,null,null,null,null,null,null,null,null,null,null,null,19]
[null,null,null,null,null,null,null,null,null,null,null,null,null,null,null,null,null,null,null,null,null,null,null,null,null,null,null,null,null,null,"COLUMN",{"$f":"SUM(AF7:AG25)","v":0},null,null,{"$f":"SUM(AI7:AJ25)","v":0}]
["POLE LEGEND:",null,"L = LOWER TOP(Item 5E)",null,null,null,null,null,null,null,null,null,null,null,null,null,null,null,null,null,null,null,null,null,null,null,null,null,null,null,"TOTAL"]
["P = PULL (Item 5A)",null,"C(XX) = FOOTAGE CUT"]
["PB = PULL BUTT",null,"SCZ = SAFETY CLEARANCE ZONE",null,null,null,null,null,"Show Quantity of",null,null,null,null,null,null,null,"GEOGRAPHICAL LOCATION"]
["T = TRANSPORT (Item 5B)",null,null,"SOP = SECTION OF POLE",null,null,null,null,"Items to be billed"]
["S = SALVAGE",null,"ANCHOR/ARM LEGEND:",null,null,null,null,null,"in the Column of"]
["D = DISPOSE (Item 5D)",null,"AR = ANCHOR/ARM REMOVED",null,null,null,null,null,"Party to be Paid. ",null,null,null,null,null,null,null,"COMMUNITY"]
["TN = TENANT",null,"AT = ANCHOR/ARM TRANSFERRED"]
[]
[null,null,null,null,null,null,null,null,null,null,null,null,null,null,null,null,null,null,null,null,null,null,null,null,null,null,null,null,null,null,null,null,{"$f":"AG31","v":0},null,null,{"$f":"AJ31","v":0}]

{"sheet":"PAGE 7","index":6,"n_rows":35,"n_cols":38,"rows_kept":35,"cut":false,"hidden":false,"merged":[[31,16,31,19],[25,24,29,28],[25,31,26,32],[25,34,26,35],[25,36,29,38],[28,16,28,19],[29,16,30,19],[24,0,24,2],[24,5,24,6],[24,24,24,28],[24,31,24,32],[24,34,24,35],[24,36,24,38],[23,0,23,2],[23,5,23,6],[23,24,23,28],[23,31,23,32],[23,34,23,35],[23,36,23,38],[22,0,22,2],[22,5,22,6],[22,24,22,28],[22,31,22,32],[22,34,22,35],[22,36,22,38],[21,0,21,2],[21,5,21,6],[21,24,21,28],[21,31,21,32],[21,34,21,35],[21,36,21,38],[20,0,20,2],[20,5,20,6],[20,24,20,28],[20,31,20,32],[20,34,20,35],[20,36,20,38],[19,0,19,2],[19,5,19,6],[19,24,19,28],[19,31,19,32],[19,34,19,35],[19,36,19,38],[18,0,18,2],[18,5,18,6],[18,24,18,28],[18,31,18,32],[18,34,18,35],[18,36,18,38],[17,0,17,2],[17,5,17,6],[17,24,17,28],[17,31,17,32],[17,34,17,35],[17,36,17,38],[16,0,16,2],[16,5,16,6],[16,24,16,28],[16,31,16,32],[16,34,16,35],[16,36,16,38],[15,0,15,2],[15,5,15,6],[15,24,15,28],[15,31,15,32],[15,34,15,35],[15,36,15,38],[14,0,14,2],[14,5,14,6],[14,24,14,28],[14,31,14,32],[14,34,14,35],[14,36,14,38],[13,0,13,2],[13,5,13,6],[13,24,13,28],[13,31,13,32],[13,34,13,35],[13,36,13,38],[12,0,12,2],[12,5,12,6],[12,24,12,28],[12,31,12,32],[12,34,12,35],[12,36,12,38],[11,0,11,2],[11,5,11,6],[11,24,11,28],[11,31,11,32],[11,34,11,35],[11,36,11,38],[10,0,10,2],[10,5,10,6],[10,24,10,28],[10,31,10,32],[10,34,10,35],[10,36,10,38],[9,0,9,2],[9,5,9,6],[9,24,9,28],[9,31,9,32],[9,34,9,35],[9,36,9,38],[8,0,8,2],[8,5,8,6],[8,24,8,28],[8,31,8,32],[8,34,8,35],[8,36,8,38],[7,0,7,2],[7,5,7,6],[7,24,7,28],[7,31,7,32],[7,34,7,35],[7,36,7,38],[6,0,6,2],[6,5,6,6],[6,24,6,28],[6,31,6,32],[6,34,6,35],[6,36,6,38],[0,34,0,38],[1,26,1,29],[1,32,1,34],[1,37,1,38],[3,0,5,2],[3,3,4,3],[3,4,5,4],[3,5,3,6],[3,7,3,14],[3,15,3,22],[3,36,3,38],[4,5,4,6],[4,36,4,38],[5,5,5,6],[5,31,5,32],[5,34,5,35],[5,36,5,38],[3,23,5,23],[3,24,5,29],[3,30,5,30],[3,32,4,32],[3,33,5,33],[3,35,4,35]]}
["Page No.",7,"of",{"$f":"'PAGE 1'!E2","v":0},null,null,"FINAL",{"$f":"'PAGE 1'!J1","v":"Preliminary"},null,null,null,null,null,null,null,null,null,null,null,null,null,null,null,null,null,null,null,null,null,null,null,null,null,"BILL NO. "]
["J.P. FORM 2-1  Rev 07/20",null,null,null,null,null,null,null,null,null,null,null,null,null,null,null,null,null,null,null,null,null,null,null,null,"J.P. AUTH. NO. ",{"$f":"'PAGE 1'!AA4:AE4","v":0},null,null,null,null,null,"PAGE NO.",null,null,7,"OF",{"$f":"'PAGE 1'!E2","v":0}]
[]
["POLE NO.",null,null,"Pole Length","Year                           Set","Pole Trt",null,"Record",null,null,null,null,null,null,null,"Proposed",null,null,null,null,null,null,null,"Item No.","LOCATION AND NATURE OF WORK                                                                                                                            If not in accordance with Joint Pole agreement and routine-state reasons.",null,null,null,null,null,"BILL CODE","UTILITY",null,"BILL CODE","UTILITY"]
[null,null,null,null,null,"Class"]
[null,null,null,"Anchor Size",null,"Anchor Direct.",null,null,null,null,null,null,null,null,null,null,null,null,null,null,null,null,null,null,null,null,null,null,null,null,null,"AMOUNT",null,null,"AMOUNT",null,"ACCOUNTING DIRECTIONS:"]
[null,null,null,null,null,null,null,null,null,null,null,null,null,null,null,null,null,null,null,null,null,null,null,null,null,null,null,null,null,1]
[null,null,null,null,null,null,null,null,null,null,null,null,null,null,null,null,null,null,null,null,null,null,null,null,null,null,null,null,null,2]
[null,null,null,null,null,null,null,null,null,null,null,null,null,null,null,null,null,null,null,null,null,null,null,null,null,null,null,null,null,3]
[null,null,null,null,null,null,null,null,null,null,null,null,null,null,null,null,null,null,null,null,null,null,null,null,null,null,null,null,null,4]
[null,null,null,null,null,null,null,null,null,null,null,null,null,null,null,null,null,null,null,null,null,null,null,null,null,null,null,null,null,5]
[null,null,null,null,null,null,null,null,null,null,null,null,null,null,null,null,null,null,null,null,null,null,null,null,null,null,null,null,null,6]
[null,null,null,null,null,null,null,null,null,null,null,null,null,null,null,null,null,null,null,null,null,null,null,null,null,null,null,null,null,7]
[null,null,null,null,null,null,null,null,null,null,null,null,null,null,null,null,null,null,null,null,null,null,null,null,null,null,null,null,null,8]
[null,null,null,null,null,null,null,null,null,null,null,null,null,null,null,null,null,null,null,null,null,null,null,null,null,null,null,null,null,9]
[null,null,null,null,null,null,null,null,null,null,null,null,null,null,null,null,null,null,null,null,null,null,null,null,null,null,null,null,null,10]
[null,null,null,null,null,null,null,null,null,null,null,null,null,null,null,null,null,null,null,null,null,null,null,null,null,null,null,null,null,11]
[null,null,null,null,null,null,null,null,null,null,null,null,null,null,null,null,null,null,null,null,null,null,null,null,null,null,null,null,null,12]
[null,null,null,null,null,null,null,null,null,null,null,null,null,null,null,null,null,null,null,null,null,null,null,null,null,null,null,null,null,13]
[null,null,null,null,null,null,null,null,null,null,null,null,null,null,null,null,null,null,null,null,null,null,null,null,null,null,null,null,null,14]
[null,null,null,null,null,null,null,null,null,null,null,null,null,null,null,null,null,null,null,null,null,null,null,null,null,null,null,null,null,15]
[null,null,null,null,null,null,null,null,null,null,null,null,null,null,null,null,null,null,null,null,null,null,null,null,null,null,null,null,null,16]
[null,null,null,null,null,null,null,null,null,null,null,null,null,null,null,null,null,null,null,null,null,null,null,null,null,null,null,null,null,17]
[null,null,null,null,null,null,null,null,null,null,null,null,null,null,null,null,null,null,null,null,null,null,null,null,null,null,null,null,null,18]
[null,null,null,null,null,null,null,null,null,null,null,null,null,null,null,null,null,null,null,null,null,null,null,null,null,null,null,null,null,19]
[null,null,null,null,null,null,null,null,null,null,null,null,null,null,null,null,null,null,null,null,null,null,null,null,null,null,null,null,null,null,"COLUMN",{"$f":"SUM(AF7:AG25)","v":0},null,null,{"$f":"SUM(AI7:AJ25)","v":0}]
["POLE LEGEND:",null,"L = LOWER TOP(Item 5E)",null,null,null,null,null,null,null,null,null,null,null,null,null,null,null,null,null,null,null,null,null,null,null,null,null,null,null,"TOTAL"]
["P = PULL (Item 5A)",null,"C(XX) = FOOTAGE CUT"]
["PB = PULL BUTT",null,"SCZ = SAFETY CLEARANCE ZONE",null,null,null,null,null,"Show Quantity of",null,null,null,null,null,null,null,"GEOGRAPHICAL LOCATION"]
["T = TRANSPORT (Item 5B)",null,null,"SOP = SECTION OF POLE",null,null,null,null,"Items to be billed"]
["S = SALVAGE",null,"ANCHOR/ARM LEGEND:",null,null,null,null,null,"in the Column of"]
["D = DISPOSE (Item 5D)",null,"AR = ANCHOR/ARM REMOVED",null,null,null,null,null,"Party to be Paid. ",null,null,null,null,null,null,null,"COMMUNITY"]
["TN = TENANT",null,"AT = ANCHOR/ARM TRANSFERRED"]
[]
[null,null,null,null,null,null,null,null,null,null,null,null,null,null,null,null,null,null,null,null,null,null,null,null,null,null,null,null,null,null,null,null,{"$f":"AG31","v":0},null,null,{"$f":"AJ31","v":0}]

{"sheet":"PAGE 8","index":7,"n_rows":35,"n_cols":38,"rows_kept":35,"cut":false,"hidden":false,"merged":[[31,16,31,19],[25,24,29,28],[25,31,26,32],[25,34,26,35],[25,36,29,38],[28,16,28,19],[29,16,30,19],[24,0,24,2],[24,5,24,6],[24,24,24,28],[24,31,24,32],[24,34,24,35],[24,36,24,38],[23,0,23,2],[23,5,23,6],[23,24,23,28],[23,31,23,32],[23,34,23,35],[23,36,23,38],[22,0,22,2],[22,5,22,6],[22,24,22,28],[22,31,22,32],[22,34,22,35],[22,36,22,38],[21,0,21,2],[21,5,21,6],[21,24,21,28],[21,31,21,32],[21,34,21,35],[21,36,21,38],[20,0,20,2],[20,5,20,6],[20,24,20,28],[20,31,20,32],[20,34,20,35],[20,36,20,38],[19,0,19,2],[19,5,19,6],[19,24,19,28],[19,31,19,32],[19,34,19,35],[19,36,19,38],[18,0,18,2],[18,5,18,6],[18,24,18,28],[18,31,18,32],[18,34,18,35],[18,36,18,38],[17,0,17,2],[17,5,17,6],[17,24,17,28],[17,31,17,32],[17,34,17,35],[17,36,17,38],[16,0,16,2],[16,5,16,6],[16,24,16,28],[16,31,16,32],[16,34,16,35],[16,36,16,38],[15,0,15,2],[15,5,15,6],[15,24,15,28],[15,31,15,32],[15,34,15,35],[15,36,15,38],[14,0,14,2],[14,5,14,6],[14,24,14,28],[14,31,14,32],[14,34,14,35],[14,36,14,38],[13,0,13,2],[13,5,13,6],[13,24,13,28],[13,31,13,32],[13,34,13,35],[13,36,13,38],[12,0,12,2],[12,5,12,6],[12,24,12,28],[12,31,12,32],[12,34,12,35],[12,36,12,38],[11,0,11,2],[11,5,11,6],[11,24,11,28],[11,31,11,32],[11,34,11,35],[11,36,11,38],[10,0,10,2],[10,5,10,6],[10,24,10,28],[10,31,10,32],[10,34,10,35],[10,36,10,38],[9,0,9,2],[9,5,9,6],[9,24,9,28],[9,31,9,32],[9,34,9,35],[9,36,9,38],[8,0,8,2],[8,5,8,6],[8,24,8,28],[8,31,8,32],[8,34,8,35],[8,36,8,38],[7,0,7,2],[7,5,7,6],[7,24,7,28],[7,31,7,32],[7,34,7,35],[7,36,7,38],[6,0,6,2],[6,5,6,6],[6,24,6,28],[6,31,6,32],[6,34,6,35],[6,36,6,38],[0,34,0,38],[1,26,1,29],[1,32,1,34],[1,37,1,38],[3,0,5,2],[3,3,4,3],[3,4,5,4],[3,5,3,6],[3,7,3,14],[3,15,3,22],[3,36,3,38],[4,5,4,6],[4,36,4,38],[5,5,5,6],[5,31,5,32],[5,34,5,35],[5,36,5,38],[3,23,5,23],[3,24,5,29],[3,30,5,30],[3,32,4,32],[3,33,5,33],[3,35,4,35]]}
["Page No.",8,"of",{"$f":"'PAGE 1'!E2","v":0},null,null,"FINAL",{"$f":"'PAGE 1'!J1","v":"Preliminary"},null,null,null,null,null,null,null,null,null,null,null,null,null,null,null,null,null,null,null,null,null,null,null,null,null,"BILL NO. "]
["J.P. FORM 2-1  Rev 07/20",null,null,null,null,null,null,null,null,null,null,null,null,null,null,null,null,null,null,null,null,null,null,null,null,"J.P. AUTH. NO. ",{"$f":"'PAGE 1'!AA4:AE4","v":0},null,null,null,null,null,"PAGE NO.",null,null,8,"OF",{"$f":"'PAGE 1'!E2","v":0}]
[]
["POLE NO.",null,null,"Pole Length","Year                           Set","Pole Trt",null,"Record",null,null,null,null,null,null,null,"Proposed",null,null,null,null,null,null,null,"Item No.","LOCATION AND NATURE OF WORK                                                                                                                            If not in accordance with Joint Pole agreement and routine-state reasons.",null,null,null,null,null,"BILL CODE","UTILITY",null,"BILL CODE","UTILITY"]
[null,null,null,null,null,"Class"]
[null,null,null,"Anchor Size",null,"Anchor Direct.",null,null,null,null,null,null,null,null,null,null,null,null,null,null,null,null,null,null,null,null,null,null,null,null,null,"AMOUNT",null,null,"AMOUNT",null,"ACCOUNTING DIRECTIONS:"]
[null,null,null,null,null,null,null,null,null,null,null,null,null,null,null,null,null,null,null,null,null,null,null,null,null,null,null,null,null,1]
[null,null,null,null,null,null,null,null,null,null,null,null,null,null,null,null,null,null,null,null,null,null,null,null,null,null,null,null,null,2]
[null,null,null,null,null,null,null,null,null,null,null,null,null,null,null,null,null,null,null,null,null,null,null,null,null,null,null,null,null,3]
[null,null,null,null,null,null,null,null,null,null,null,null,null,null,null,null,null,null,null,null,null,null,null,null,null,null,null,null,null,4]
[null,null,null,null,null,null,null,null,null,null,null,null,null,null,null,null,null,null,null,null,null,null,null,null,null,null,null,null,null,5]
[null,null,null,null,null,null,null,null,null,null,null,null,null,null,null,null,null,null,null,null,null,null,null,null,null,null,null,null,null,6]
[null,null,null,null,null,null,null,null,null,null,null,null,null,null,null,null,null,null,null,null,null,null,null,null,null,null,null,null,null,7]
[null,null,null,null,null,null,null,null,null,null,null,null,null,null,null,null,null,null,null,null,null,null,null,null,null,null,null,null,null,8]
[null,null,null,null,null,null,null,null,null,null,null,null,null,null,null,null,null,null,null,null,null,null,null,null,null,null,null,null,null,9]
[null,null,null,null,null,null,null,null,null,null,null,null,null,null,null,null,null,null,null,null,null,null,null,null,null,null,null,null,null,10]
[null,null,null,null,null,null,null,null,null,null,null,null,null,null,null,null,null,null,null,null,null,null,null,null,null,null,null,null,null,11]
[null,null,null,null,null,null,null,null,null,null,null,null,null,null,null,null,null,null,null,null,null,null,null,null,null,null,null,null,null,12]
[null,null,null,null,null,null,null,null,null,null,null,null,null,null,null,null,null,null,null,null,null,null,null,null,null,null,null,null,null,13]
[null,null,null,null,null,null,null,null,null,null,null,null,null,null,null,null,null,null,null,null,null,null,null,null,null,null,null,null,null,14]
[null,null,null,null,null,null,null,null,null,null,null,null,null,null,null,null,null,null,null,null,null,null,null,null,null,null,null,null,null,15]
[null,null,null,null,null,null,null,null,null,null,null,null,null,null,null,null,null,null,null,null,null,null,null,null,null,null,null,null,null,16]
[null,null,null,null,null,null,null,null,null,null,null,null,null,null,null,null,null,null,null,null,null,null,null,null,null,null,null,null,null,17]
[null,null,null,null,null,null,null,null,null,null,null,null,null,null,null,null,null,null,null,null,null,null,null,null,null,null,null,null,null,18]
[null,null,null,null,null,null,null,null,null,null,null,null,null,null,null,null,null,null,null,null,null,null,null,null,null,null,null,null,null,19]
[null,null,null,null,null,null,null,null,null,null,null,null,null,null,null,null,null,null,null,null,null,null,null,null,null,null,null,null,null,null,"COLUMN",{"$f":"SUM(AF7:AG25)","v":0},null,null,{"$f":"SUM(AI7:AJ25)","v":0}]
["POLE LEGEND:",null,"L = LOWER TOP(Item 5E)",null,null,null,null,null,null,null,null,null,null,null,null,null,null,null,null,null,null,null,null,null,null,null,null,null,null,null,"TOTAL"]
["P = PULL (Item 5A)",null,"C(XX) = FOOTAGE CUT"]
["PB = PULL BUTT",null,"SCZ = SAFETY CLEARANCE ZONE",null,null,null,null,null,"Show Quantity of",null,null,null,null,null,null,null,"GEOGRAPHICAL LOCATION"]
["T = TRANSPORT (Item 5B)",null,null,"SOP = SECTION OF POLE",null,null,null,null,"Items to be billed"]
["S = SALVAGE",null,"ANCHOR/ARM LEGEND:",null,null,null,null,null,"in the Column of"]
["D = DISPOSE (Item 5D)",null,"AR = ANCHOR/ARM REMOVED",null,null,null,null,null,"Party to be Paid. ",null,null,null,null,null,null,null,"COMMUNITY"]
["TN = TENANT",null,"AT = ANCHOR/ARM TRANSFERRED"]
[]
[null,null,null,null,null,null,null,null,null,null,null,null,null,null,null,null,null,null,null,null,null,null,null,null,null,null,null,null,null,null,null,null,{"$f":"AG31","v":0},null,null,{"$f":"AJ31","v":0}]

{"sheet":"PAGE 9","index":8,"n_rows":35,"n_cols":38,"rows_kept":35,"cut":false,"hidden":false,"merged":[[31,16,31,19],[25,24,29,28],[25,31,26,32],[25,34,26,35],[25,36,29,38],[28,16,28,19],[29,16,30,19],[24,0,24,2],[24,5,24,6],[24,24,24,28],[24,31,24,32],[24,34,24,35],[24,36,24,38],[23,0,23,2],[23,5,23,6],[23,24,23,28],[23,31,23,32],[23,34,23,35],[23,36,23,38],[22,0,22,2],[22,5,22,6],[22,24,22,28],[22,31,22,32],[22,34,22,35],[22,36,22,38],[21,0,21,2],[21,5,21,6],[21,24,21,28],[21,31,21,32],[21,34,21,35],[21,36,21,38],[20,0,20,2],[20,5,20,6],[20,24,20,28],[20,31,20,32],[20,34,20,35],[20,36,20,38],[19,0,19,2],[19,5,19,6],[19,24,19,28],[19,31,19,32],[19,34,19,35],[19,36,19,38],[18,0,18,2],[18,5,18,6],[18,24,18,28],[18,31,18,32],[18,34,18,35],[18,36,18,38],[17,0,17,2],[17,5,17,6],[17,24,17,28],[17,31,17,32],[17,34,17,35],[17,36,17,38],[16,0,16,2],[16,5,16,6],[16,24,16,28],[16,31,16,32],[16,34,16,35],[16,36,16,38],[15,0,15,2],[15,5,15,6],[15,24,15,28],[15,31,15,32],[15,34,15,35],[15,36,15,38],[14,0,14,2],[14,5,14,6],[14,24,14,28],[14,31,14,32],[14,34,14,35],[14,36,14,38],[13,0,13,2],[13,5,13,6],[13,24,13,28],[13,31,13,32],[13,34,13,35],[13,36,13,38],[12,0,12,2],[12,5,12,6],[12,24,12,28],[12,31,12,32],[12,34,12,35],[12,36,12,38],[11,0,11,2],[11,5,11,6],[11,24,11,28],[11,31,11,32],[11,34,11,35],[11,36,11,38],[10,0,10,2],[10,5,10,6],[10,24,10,28],[10,31,10,32],[10,34,10,35],[10,36,10,38],[9,0,9,2],[9,5,9,6],[9,24,9,28],[9,31,9,32],[9,34,9,35],[9,36,9,38],[8,0,8,2],[8,5,8,6],[8,24,8,28],[8,31,8,32],[8,34,8,35],[8,36,8,38],[7,0,7,2],[7,5,7,6],[7,24,7,28],[7,31,7,32],[7,34,7,35],[7,36,7,38],[6,0,6,2],[6,5,6,6],[6,24,6,28],[6,31,6,32],[6,34,6,35],[6,36,6,38],[0,34,0,38],[1,26,1,29],[1,32,1,34],[1,37,1,38],[3,0,5,2],[3,3,4,3],[3,4,5,4],[3,5,3,6],[3,7,3,14],[3,15,3,22],[3,36,3,38],[4,5,4,6],[4,36,4,38],[5,5,5,6],[5,31,5,32],[5,34,5,35],[5,36,5,38],[3,23,5,23],[3,24,5,29],[3,30,5,30],[3,32,4,32],[3,33,5,33],[3,35,4,35]]}
["Page No.",9,"of",{"$f":"'PAGE 1'!E2","v":0},null,null,"FINAL",{"$f":"'PAGE 1'!J1","v":"Preliminary"},null,null,null,null,null,null,null,null,null,null,null,null,null,null,null,null,null,null,null,null,null,null,null,null,null,"BILL NO. "]
["J.P. FORM 2-1  Rev 07/20",null,null,null,null,null,null,null,null,null,null,null,null,null,null,null,null,null,null,null,null,null,null,null,null,"J.P. AUTH. NO. ",{"$f":"'PAGE 1'!AA4:AE4","v":0},null,null,null,null,null,"PAGE NO.",null,null,9,"OF",{"$f":"'PAGE 1'!E2","v":0}]
[]
["POLE NO.",null,null,"Pole Length","Year                           Set","Pole Trt",null,"Record",null,null,null,null,null,null,null,"Proposed",null,null,null,null,null,null,null,"Item No.","LOCATION AND NATURE OF WORK                                                                                                                            If not in accordance with Joint Pole agreement and routine-state reasons.",null,null,null,null,null,"BILL CODE","UTILITY",null,"BILL CODE","UTILITY"]
[null,null,null,null,null,"Class"]
[null,null,null,"Anchor Size",null,"Anchor Direct.",null,null,null,null,null,null,null,null,null,null,null,null,null,null,null,null,null,null,null,null,null,null,null,null,null,"AMOUNT",null,null,"AMOUNT",null,"ACCOUNTING DIRECTIONS:"]
[null,null,null,null,null,null,null,null,null,null,null,null,null,null,null,null,null,null,null,null,null,null,null,null,null,null,null,null,null,1]
[null,null,null,null,null,null,null,null,null,null,null,null,null,null,null,null,null,null,null,null,null,null,null,null,null,null,null,null,null,2]
[null,null,null,null,null,null,null,null,null,null,null,null,null,null,null,null,null,null,null,null,null,null,null,null,null,null,null,null,null,3]
[null,null,null,null,null,null,null,null,null,null,null,null,null,null,null,null,null,null,null,null,null,null,null,null,null,null,null,null,null,4]
[null,null,null,null,null,null,null,null,null,null,null,null,null,null,null,null,null,null,null,null,null,null,null,null,null,null,null,null,null,5]
[null,null,null,null,null,null,null,null,null,null,null,null,null,null,null,null,null,null,null,null,null,null,null,null,null,null,null,null,null,6]
[null,null,null,null,null,null,null,null,null,null,null,null,null,null,null,null,null,null,null,null,null,null,null,null,null,null,null,null,null,7]
[null,null,null,null,null,null,null,null,null,null,null,null,null,null,null,null,null,null,null,null,null,null,null,null,null,null,null,null,null,8]
[null,null,null,null,null,null,null,null,null,null,null,null,null,null,null,null,null,null,null,null,null,null,null,null,null,null,null,null,null,9]
[null,null,null,null,null,null,null,null,null,null,null,null,null,null,null,null,null,null,null,null,null,null,null,null,null,null,null,null,null,10]
[null,null,null,null,null,null,null,null,null,null,null,null,null,null,null,null,null,null,null,null,null,null,null,null,null,null,null,null,null,11]
[null,null,null,null,null,null,null,null,null,null,null,null,null,null,null,null,null,null,null,null,null,null,null,null,null,null,null,null,null,12]
[null,null,null,null,null,null,null,null,null,null,null,null,null,null,null,null,null,null,null,null,null,null,null,null,null,null,null,null,null,13]
[null,null,null,null,null,null,null,null,null,null,null,null,null,null,null,null,null,null,null,null,null,null,null,null,null,null,null,null,null,14]
[null,null,null,null,null,null,null,null,null,null,null,null,null,null,null,null,null,null,null,null,null,null,null,null,null,null,null,null,null,15]
[null,null,null,null,null,null,null,null,null,null,null,null,null,null,null,null,null,null,null,null,null,null,null,null,null,null,null,null,null,16]
[null,null,null,null,null,null,null,null,null,null,null,null,null,null,null,null,null,null,null,null,null,null,null,null,null,null,null,null,null,17]
[null,null,null,null,null,null,null,null,null,null,null,null,null,null,null,null,null,null,null,null,null,null,null,null,null,null,null,null,null,18]
[null,null,null,null,null,null,null,null,null,null,null,null,null,null,null,null,null,null,null,null,null,null,null,null,null,null,null,null,null,19]
[null,null,null,null,null,null,null,null,null,null,null,null,null,null,null,null,null,null,null,null,null,null,null,null,null,null,null,null,null,null,"COLUMN",{"$f":"SUM(AF7:AG25)","v":0},null,null,{"$f":"SUM(AI7:AJ25)","v":0}]
["POLE LEGEND:",null,"L = LOWER TOP(Item 5E)",null,null,null,null,null,null,null,null,null,null,null,null,null,null,null,null,null,null,null,null,null,null,null,null,null,null,null,"TOTAL"]
["P = PULL (Item 5A)",null,"C(XX) = FOOTAGE CUT"]
["PB = PULL BUTT",null,"SCZ = SAFETY CLEARANCE ZONE",null,null,null,null,null,"Show Quantity of",null,null,null,null,null,null,null,"GEOGRAPHICAL LOCATION"]
["T = TRANSPORT (Item 5B)",null,null,"SOP = SECTION OF POLE",null,null,null,null,"Items to be billed"]
["S = SALVAGE",null,"ANCHOR/ARM LEGEND:",null,null,null,null,null,"in the Column of"]
["D = DISPOSE (Item 5D)",null,"AR = ANCHOR/ARM REMOVED",null,null,null,null,null,"Party to be Paid. ",null,null,null,null,null,null,null,"COMMUNITY"]
["TN = TENANT",null,"AT = ANCHOR/ARM TRANSFERRED"]
[]
[null,null,null,null,null,null,null,null,null,null,null,null,null,null,null,null,null,null,null,null,null,null,null,null,null,null,null,null,null,null,null,null,{"$f":"AG31","v":0},null,null,{"$f":"AJ31","v":0}]

{"sheet":"PAGE 10","index":9,"n_rows":35,"n_cols":38,"rows_kept":35,"cut":false,"hidden":false,"merged":[[31,16,31,19],[25,24,29,28],[25,31,26,32],[25,34,26,35],[25,36,29,38],[28,16,28,19],[29,16,30,19],[24,0,24,2],[24,5,24,6],[24,24,24,28],[24,31,24,32],[24,34,24,35],[24,36,24,38],[23,0,23,2],[23,5,23,6],[23,24,23,28],[23,31,23,32],[23,34,23,35],[23,36,23,38],[22,0,22,2],[22,5,22,6],[22,24,22,28],[22,31,22,32],[22,34,22,35],[22,36,22,38],[21,0,21,2],[21,5,21,6],[21,24,21,28],[21,31,21,32],[21,34,21,35],[21,36,21,38],[20,0,20,2],[20,5,20,6],[20,24,20,28],[20,31,20,32],[20,34,20,35],[20,36,20,38],[19,0,19,2],[19,5,19,6],[19,24,19,28],[19,31,19,32],[19,34,19,35],[19,36,19,38],[18,0,18,2],[18,5,18,6],[18,24,18,28],[18,31,18,32],[18,34,18,35],[18,36,18,38],[17,0,17,2],[17,5,17,6],[17,24,17,28],[17,31,17,32],[17,34,17,35],[17,36,17,38],[16,0,16,2],[16,5,16,6],[16,24,16,28],[16,31,16,32],[16,34,16,35],[16,36,16,38],[15,0,15,2],[15,5,15,6],[15,24,15,28],[15,31,15,32],[15,34,15,35],[15,36,15,38],[14,0,14,2],[14,5,14,6],[14,24,14,28],[14,31,14,32],[14,34,14,35],[14,36,14,38],[13,0,13,2],[13,5,13,6],[13,24,13,28],[13,31,13,32],[13,34,13,35],[13,36,13,38],[12,0,12,2],[12,5,12,6],[12,24,12,28],[12,31,12,32],[12,34,12,35],[12,36,12,38],[11,0,11,2],[11,5,11,6],[11,24,11,28],[11,31,11,32],[11,34,11,35],[11,36,11,38],[10,0,10,2],[10,5,10,6],[10,24,10,28],[10,31,10,32],[10,34,10,35],[10,36,10,38],[9,0,9,2],[9,5,9,6],[9,24,9,28],[9,31,9,32],[9,34,9,35],[9,36,9,38],[8,0,8,2],[8,5,8,6],[8,24,8,28],[8,31,8,32],[8,34,8,35],[8,36,8,38],[7,0,7,2],[7,5,7,6],[7,24,7,28],[7,31,7,32],[7,34,7,35],[7,36,7,38],[6,0,6,2],[6,5,6,6],[6,24,6,28],[6,31,6,32],[6,34,6,35],[6,36,6,38],[0,34,0,38],[1,26,1,29],[1,32,1,34],[1,37,1,38],[3,0,5,2],[3,3,4,3],[3,4,5,4],[3,5,3,6],[3,7,3,14],[3,15,3,22],[3,36,3,38],[4,5,4,6],[4,36,4,38],[5,5,5,6],[5,31,5,32],[5,34,5,35],[5,36,5,38],[3,23,5,23],[3,24,5,29],[3,30,5,30],[3,32,4,32],[3,33,5,33],[3,35,4,35]]}
["Page No.",10,"of",{"$f":"'PAGE 1'!E2","v":0},null,null,"FINAL",{"$f":"'PAGE 1'!J1","v":"Preliminary"},null,null,null,null,null,null,null,null,null,null,null,null,null,null,null,null,null,null,null,null,null,null,null,null,null,"BILL NO. "]
["J.P. FORM 2-1  Rev 07/20",null,null,null,null,null,null,null,null,null,null,null,null,null,null,null,null,null,null,null,null,null,null,null,null,"J.P. AUTH. NO. ",{"$f":"'PAGE 1'!AA4:AE4","v":0},null,null,null,null,null,"PAGE NO.",null,null,10,"OF",{"$f":"'PAGE 1'!E2","v":0}]
[]
["POLE NO.",null,null,"Pole Length","Year                           Set","Pole Trt",null,"Record",null,null,null,null,null,null,null,"Proposed",null,null,null,null,null,null,null,"Item No.","LOCATION AND NATURE OF WORK                                                                                                                            If not in accordance with Joint Pole agreement and routine-state reasons.",null,null,null,null,null,"BILL CODE","UTILITY",null,"BILL CODE","UTILITY"]
[null,null,null,null,null,"Class"]
[null,null,null,"Anchor Size",null,"Anchor Direct.",null,null,null,null,null,null,null,null,null,null,null,null,null,null,null,null,null,null,null,null,null,null,null,null,null,"AMOUNT",null,null,"AMOUNT",null,"ACCOUNTING DIRECTIONS:"]
[null,null,null,null,null,null,null,null,null,null,null,null,null,null,null,null,null,null,null,null,null,null,null,null,null,null,null,null,null,1]
[null,null,null,null,null,null,null,null,null,null,null,null,null,null,null,null,null,null,null,null,null,null,null,null,null,null,null,null,null,2]
[null,null,null,null,null,null,null,null,null,null,null,null,null,null,null,null,null,null,null,null,null,null,null,null,null,null,null,null,null,3]
[null,null,null,null,null,null,null,null,null,null,null,null,null,null,null,null,null,null,null,null,null,null,null,null,null,null,null,null,null,4]
[null,null,null,null,null,null,null,null,null,null,null,null,null,null,null,null,null,null,null,null,null,null,null,null,null,null,null,null,null,5]
[null,null,null,null,null,null,null,null,null,null,null,null,null,null,null,null,null,null,null,null,null,null,null,null,null,null,null,null,null,6]
[null,null,null,null,null,null,null,null,null,null,null,null,null,null,null,null,null,null,null,null,null,null,null,null,null,null,null,null,null,7]
[null,null,null,null,null,null,null,null,null,null,null,null,null,null,null,null,null,null,null,null,null,null,null,null,null,null,null,null,null,8]
[null,null,null,null,null,null,null,null,null,null,null,null,null,null,null,null,null,null,null,null,null,null,null,null,null,null,null,null,null,9]
[null,null,null,null,null,null,null,null,null,null,null,null,null,null,null,null,null,null,null,null,null,null,null,null,null,null,null,null,null,10]
[null,null,null,null,null,null,null,null,null,null,null,null,null,null,null,null,null,null,null,null,null,null,null,null,null,null,null,null,null,11]
[null,null,null,null,null,null,null,null,null,null,null,null,null,null,null,null,null,null,null,null,null,null,null,null,null,null,null,null,null,12]
[null,null,null,null,null,null,null,null,null,null,null,null,null,null,null,null,null,null,null,null,null,null,null,null,null,null,null,null,null,13]
[null,null,null,null,null,null,null,null,null,null,null,null,null,null,null,null,null,null,null,null,null,null,null,null,null,null,null,null,null,14]
[null,null,null,null,null,null,null,null,null,null,null,null,null,null,null,null,null,null,null,null,null,null,null,null,null,null,null,null,null,15]
[null,null,null,null,null,null,null,null,null,null,null,null,null,null,null,null,null,null,null,null,null,null,null,null,null,null,null,null,null,16]
[null,null,null,null,null,null,null,null,null,null,null,null,null,null,null,null,null,null,null,null,null,null,null,null,null,null,null,null,null,17]
[null,null,null,null,null,null,null,null,null,null,null,null,null,null,null,null,null,null,null,null,null,null,null,null,null,null,null,null,null,18]
[null,null,null,null,null,null,null,null,null,null,null,null,null,null,null,null,null,null,null,null,null,null,null,null,null,null,null,null,null,19]
[null,null,null,null,null,null,null,null,null,null,null,null,null,null,null,null,null,null,null,null,null,null,null,null,null,null,null,null,null,null,"COLUMN",{"$f":"SUM(AF7:AG25)","v":0},null,null,{"$f":"SUM(AI7:AJ25)","v":0}]
["POLE LEGEND:",null,"L = LOWER TOP(Item 5E)",null,null,null,null,null,null,null,null,null,null,null,null,null,null,null,null,null,null,null,null,null,null,null,null,null,null,null,"TOTAL"]
["P = PULL (Item 5A)",null,"C(XX) = FOOTAGE CUT"]
["PB = PULL BUTT",null,"SCZ = SAFETY CLEARANCE ZONE",null,null,null,null,null,"Show Quantity of",null,null,null,null,null,null,null,"GEOGRAPHICAL LOCATION"]
["T = TRANSPORT (Item 5B)",null,null,"SOP = SECTION OF POLE",null,null,null,null,"Items to be billed"]
["S = SALVAGE",null,"ANCHOR/ARM LEGEND:",null,null,null,null,null,"in the Column of"]
["D = DISPOSE (Item 5D)",null,"AR = ANCHOR/ARM REMOVED",null,null,null,null,null,"Party to be Paid. ",null,null,null,null,null,null,null,"COMMUNITY"]
["TN = TENANT",null,"AT = ANCHOR/ARM TRANSFERRED"]
[]
[null,null,null,null,null,null,null,null,null,null,null,null,null,null,null,null,null,null,null,null,null,null,null,null,null,null,null,null,null,null,null,null,{"$f":"AG31","v":0},null,null,{"$f":"AJ31","v":0}]